Cogmind - Beta 9.6 *** ADVENTURER MODE // 2020.07.23 @ 14:36:24 Player: Plexion Result: Destroyed by G-47 Trooper with Particle Gun Performance ------------- Evolutions (2) 1000 Regions Visited (5) 1000 Robots Destroyed (69) 345 Value Destroyed (1661) 1661 Prototype IDs (5) 100 Alien Tech Used (0) 0 Bonus (-255) -255 TOTAL SCORE: 3851 Bonus ------- Follower Combat Kills 95 Friendly Fire -350 Cogmind --------- Core Integrity 0/550 Matter 300/300 Energy 6/100 System Corruption 3% Temperature Cool (9) Movement Rolling (90) Ox1 Location -8/Materials Parts ------- > --- POWER (1) -------- (None) > --- PROPULSION (3) --- Wheel Wheel Wheel > --- UTILITY (5) ------ Large Storage Unit Large Storage Unit Advanced Terrain Scanner > --- WEAPON (2) ------- Beam Rifle Ripper > --- INVENTORY (16) --- Ion Engine Wheel Wheel Improved Flight Unit Improved Flight Unit Improved Flight Unit Improved Flight Unit Medium Storage Unit Medium Storage Unit Improved Terrain Scan Processor Hacking Suite Hacking Suite System Shield Heavy Assault Rifle Grenade Launcher Rocket Launcher Peak State ------------ > --- POWER ------------ Light Nuclear Core > --- PROPULSION ------- Wheel Wheel Compact Wheel > --- UTILITY ---------- Large Storage Unit Large Storage Unit Improved Sensor Array Improved Terrain Scanner Hardened Medium Armor Plating > --- WEAPON ----------- Heavy Assault Rifle Ripper > --- INVENTORY -------- Wheel Wheel Improved Hover Unit Improved Hover Unit Improved Hover Unit Improved Hover Unit Medium Storage Unit Medium Storage Unit Light Armor Plating Small Laser Particle Gun Heavy Assault Rifle Grenade Launcher Rocket Launcher [Rating: 23] Favorites ----------- Power Light Ion Engine Engine Light Ion Engine Power Core Light Nuclear Core Propulsion Wheel Wheel Wheel Utility Large Storage Unit Device Improved Sensor Array Storage Large Storage Unit Processor Improved Signal Interpreter Protection Hardened Medium Armor Plating Weapon Heavy Assault Rifle Energy Gun Particle Gun Ballistic Gun Heavy Assault Rifle Slashing Weapon Axe Build | -11 -10 -10 -10 -9 -8 ------- Run | Scr Mat Min Exi Min Mat Slots Evolved 4 | . . . . . 4 Power . | . . . . . . Propulsion 1 | . . . . . 1 Utility 3 | . . . . . 3 Weapon . | . . . . . . Parts Attached 50 | 6 7 . . 1 36 Power 4 | 1 . . . 1 2 Engine 1 | 1 . . . . . Core 3 | . . . . 1 2 Reactor . | . . . . . . Propulsion 13 | 2 2 . . . 9 Treads . | . . . . . . Leg . | . . . . . . Wheel 13 | 2 2 . . . 9 Hover . | . . . . . . Flight . | . . . . . . Utility 14 | 1 3 . . . 10 Device 5 | . 1 . . . 4 Storage 3 | 1 2 . . . . Processor 1 | . . . . . 1 Hackware . | . . . . . . Protection 5 | . . . . . 5 Artifact . | . . . . . . Weapon 19 | 2 2 . . . 15 Energy Gun 6 | 1 . . . . 5 Energy Cannon . | . . . . . . Ballistic Gun 6 | 1 2 . . . 3 Ballistic Cannon . | . . . . . . Launcher . | . . . . . . Special Weapon . | . . . . . . Impact Weapon . | . . . . . . Slashing Weapon 7 | . . . . . 7 Piercing Weapon . | . . . . . . Special Melee Weapon . | . . . . . . Unidentified Prototypes 1 | . . . . . 1 Parts Lost 20 | . . . . . 20 Power 3 | . . . . . 3 Propulsion 6 | . . . . . 6 Utility 5 | . . . . . 5 Weapon 6 | . . . . . 6 Highest Loss Streak 10 | . . . . . 10 Average Slot Usage (%) 84 | . 98 100 100 100 67 Engine 6 | . 14 14 14 9 . Core 2 | . . . . 4 4 Wheel 23 | . 28 28 28 28 17 Device 4 | . 7 . . . 5 Storage 21 | . 19 28 28 28 18 Processor 2 | . . . . . 4 Protection 1 | . . . . . 2 Energy Gun 2 | . . . . . 4 Ballistic Gun 16 | . 27 28 28 28 3 Slashing Weapon 3 | . . . . . 6 Naked Turns . | . . . . . . Heaviest Build 53 | 10 41 41 41 43 53 Greatest Support 36 | 20 26 26 26 26 36 Greatest Overweight (x) 14 | . 2 1 1 1 14 Average Overweight (x) 1 | . . 1 1 1 2 Largest Inventory Capacity 16 | 6 16 16 16 16 16 Average Capacity 14 | 5 9 16 16 16 16 Most Carried 16 | 6 14 16 16 16 16 Average Carried 12 | 2 8 15 16 15 13 Final Capacity 16 | 6 16 16 16 16 16 Final Carried 16 | 6 14 16 16 16 16 Class Distribution -------------------- 100% | Mutant Dominant Class ---------------- Mutant | -10/Materials Mutant | -10/Mines Mutant | -10/Exiles Mutant | -9/Mines Mutant | -8/Materials Resources | -11 -10 -10 -10 -9 -8 ----------- Run | Scr Mat Min Exi Min Mat Matter Collected 1134 | 270 316 18 . 82 448 Remotely . | . . . . . . Salvage Created 2642 | 172 637 34 . 286 1513 Parts 151 | 12 46 4 . 11 78 Haulers Intercepted 6 | . 2 . . . 4 Recyclers Shooed 1 | . 1 . . . . Parts Field Recycled . | . . . . . . Retrieved Matter . | . . . . . . Parts Self-Destructed . | . . . . . . Prevented . | . . . . . . Kills | -11 -10 -10 -10 -9 -8 ------- Run | Scr Mat Min Exi Min Mat Combat Hostiles Destroyed 42 | . 11 2 . 4 25 Melee 12 | . . . . . 12 Guns 30 | . 11 2 . 4 13 Classes Destroyed 11 | 2 5 . . . 4 Worker 6 | . 3 . . . 3 Tunneler 5 | 5 . . . . . Hauler 6 | . 2 . . . 4 Recycler 4 | 1 2 . . 1 . Operator 3 | . . . . . 3 Watcher 2 | . 2 . . . . Swarmer 11 | . 6 2 . . 3 Grunt 26 | . 5 . . 5 16 Duelist 1 | . . . . . 1 Sentry 4 | . . . . . 4 Hunter 1 | . . . . . 1 Best Kill Streak 6 | 6 3 2 . 3 6 Combat Bots Only 5 | . 3 2 . 2 5 Max Kills in Single Turn 2 | 1 2 1 . 1 1 Gunslinging . | . . . . . . Exploded . | . . . . . . Melee 1 | . . . . . 1 Uniques/NPCs Destroyed . | . . . . . . Combat | -11 -10 -10 -10 -9 -8 -------- Run | Scr Mat Min Exi Min Mat Damage Taken 2336 | . 236 15 . 19 2066 Core 626 | . 55 . . 11 560 Absorbed by Shields . | . . . . . . Core Remaining (%) 86 | 100 . . . 73 . Volleys Fired 110 | 10 41 3 . 12 44 Largest 2 | 2 2 2 . 2 2 Hottest 105 | 70 46 46 . 46 105 Shots Fired 215 | 20 82 6 . 24 83 Gun 215 | 20 82 6 . 24 83 Cannon . | . . . . . . Launcher . | . . . . . . Special . | . . . . . . Kinetic 175 | 10 82 6 . 24 53 Thermal 40 | 10 . . . . 30 Explosive . | . . . . . . Electromagnetic . | . . . . . . Robot Hit Streak 47 | 15 33 12 . 6 47 Robot Miss Streak 4 | 1 4 . . 1 2 Penetration Max . | . . . . . . Secondary Targets 8 | . 4 . . . 4 Max Gunslinging Chain 1 | . 1 . . . 1 Shots Hit Robots 235 | 15 62 5 . 17 136 Core Hits 95 | 9 27 2 . 8 49 Critical Hits 3 | . . . . 1 2 Critical Kills 1 | . . . . . 1 Critical Parts Destroyed 2 | . . . . 1 1 Melee Attacks 90 | . . . . . 90 Impact . | . . . . . . Slashing 90 | . . . . . 90 Piercing . | . . . . . . Sneak Attacks 12 | . . . . . 12 Combat Hostiles . | . . . . . . Follow-up Attacks . | . . . . . . Damage Inflicted 5542 | 168 911 69 . 284 4110 Guns 2467 | 168 911 69 . 284 1035 Cannons . | . . . . . . Explosions . | . . . . . . Melee 3075 | . . . . . 3075 Ramming . | . . . . . . Kinetic 2024 | 41 911 69 . 284 719 Thermal 443 | 127 . . . . 316 Explosive . | . . . . . . Electromagnetic . | . . . . . . Impact . | . . . . . . Slashing 3075 | . . . . . 3075 Piercing . | . . . . . . Highest Corruption 3 | . 1 1 1 1 3 Average Corruption 1 | . 1 1 1 1 2 Corruption Purged . | . . . . . . Effects 13 | . 2 3 . 1 7 Message Errors 5 | . 2 . . . 3 Matter Fused 1 | . . . . . 1 Heat Flow Errors 2 | . . . . . 2 Energy Discharges 3 | . . 2 . . 1 Data Loss (minor) 2 | . . 1 . 1 . Overload Shots . | . . . . . . Overflow Damage 431 | . . . . . 431 Projectiles . | . . . . . . Explosions . | . . . . . . Melee 431 | . . . . . 431 Knockbacks . | . . . . . . Impact . | . . . . . . Kinetic . | . . . . . . Secondary . | . . . . . . Self-Inflicted Damage . | . . . . . . Shots . | . . . . . . Rammed . | . . . . . . Targets Rammed . | . . . . . . Kicked . | . . . . . . Crushed . | . . . . . . Highest Temperature 521 | 110 4 . . . 521 Average Temperature 134 | 45 2 . . . 166 Received Heat Transfer 1233 | . 75 . . 15 1143 Effects 5 | . . . . . 5 Shutdowns 2 | . . . . . 2 Short Circuit 1 | . . . . . 1 Damage (major) 2 | . . . . . 2 Siege Activations . | . . . . . . Robots Corrupted . | . . . . . . Combat Hostiles . | . . . . . . Parts Fried . | . . . . . . Impact Corruptions . | . . . . . . Robots Melted . | . . . . . . Combat Hostiles . | . . . . . . Parts Melted 2 | 1 . . . . 1 Heat Transferred 1100 | 370 . . . . 730 Parts Sabotaged . | . . . . . . Parts Stolen . | . . . . . . Parts Stripped . | . . . . . . Power Chain Reactions . | . . . . . . Missiles Intercepted . | . . . . . . Alert | -11 -10 -10 -10 -9 -8 ------- Run | Scr Mat Min Exi Min Mat Peak Influence 390 | 30 264 227 . 105 390 Average Influence 123 | 10 144 121 . 35 139 Maximum Alert Level 1 | . 1 1 . . 1 Low Security (%) 77 | 100 83 79 . 100 68 Level 1 22 | . 16 20 . . 31 Level 2 . | . . . . . . Level 3 . | . . . . . . Level 4 . | . . . . . . Level 5 . | . . . . . . High Security . | . . . . . . Max Security . | . . . . . . Squads Dispatched 9 | . 1 . . . 8 Investigation 3 | . 1 . . . 2 Extermination . | . . . . . . Reinforcement 2 | . . . . . 2 Assault . | . . . . . . Garrison 4 | . . . . . 4 Intercept . | . . . . . . Construction Impeded . | . . . . . . Haulers Reinforced . | . . . . . . Stealth | -11 -10 -10 -10 -9 -8 --------- Run | Scr Mat Min Exi Min Mat Distress Signals 5 | . 2 . . . 3 Communications Jammed . | . . . . . . Distress Signals . | . . . . . . Times Spotted 72 | . 17 6 . 4 45 Peak Tracking Total 7 | . 5 3 . 2 7 Tactical Retreats 3 | . . 1 . . 2 Traps | -11 -10 -10 -10 -9 -8 ------- Run | Scr Mat Min Exi Min Mat Traps Triggered 4 | . 2 . . . 2 Indirectly . | . . . . . . Trap Hack Attempts . | . . . . . . Triggered . | . . . . . . Disarmed 4 | . 4 . . . . Reprogrammed 6 | . . . . . 6 Reused 1 | . . . . . 1 Traps Extracted . | . . . . . . Installed . | . . . . . . Triggered 1 | . . . . . 1 Machines | -11 -10 -10 -10 -9 -8 ---------- Run | Scr Mat Min Exi Min Mat Machines Disabled 2 | . 1 . . . 1 Max in Single Turn 1 | . 1 . . . 1 Machines Sabotaged . | . . . . . . Garrisons Compromised . | . . . . . . Overloaded Fab Kills . | . . . . . . Fab Network Shutdowns . | . . . . . . Hacking | -11 -10 -10 -10 -9 -8 --------- Run | Scr Mat Min Exi Min Mat Machines Accessed 13 | . 4 . 1 . 8 Terminals 12 | . 4 . . . 8 Fabricators . | . . . . . . Repair Stations . | . . . . . . Recycling Units . | . . . . . . Scanalyzers . | . . . . . . Garrison Access . | . . . . . . Total Hacks 56 | . 14 . 4 . 38 Successful 38 | . 9 . 4 . 25 Failed 18 | . 5 . . . 13 Catastrophic 1 | . 1 . . . . Database Lockouts . | . . . . . . Manual 49 | . 13 . . . 36 Terminals 52 | . 14 . . . 38 Fabricators . | . . . . . . Repair Stations . | . . . . . . Recycling Units . | . . . . . . Scanalyzers . | . . . . . . Garrison Access . | . . . . . . Terminal Hacks 23 | . 6 . 4 . 13 Record 4 | . . . 4 . . Part Schematic 2 | . . . . . 2 Prototype ID Bank 2 | . 1 . . . 1 Level Access Points 2 | . . . . . 2 Branch Access Points 1 | . 1 . . . . Unreport Threat 1 | . . . . . 1 Disarm Traps 1 | . 1 . . . . Reprogram Traps 1 | . . . . . 1 Recall Investigation 1 | . . . . . 1 Recall Reinforcements 1 | . . . . . 1 Hauler Manifests 1 | . . . . . 1 Zone Layout 6 | . 3 . . . 3 Fabricator Hacks . | . . . . . . Repair Station Hacks . | . . . . . . Recycling Unit Hacks . | . . . . . . Scanalyzer . | . . . . . . Garrison Access Hacks . | . . . . . . Unauthorized Hacks 15 | . 3 . . . 12 Terminals 15 | . 3 . . . 12 Assimilate 5 | . . . . . 5 Botnet 9 | . 3 . . . 6 Operators 1 | . . . . . 1 Fabricators . | . . . . . . Repair Stations . | . . . . . . Recycling Units . | . . . . . . Scanalyzers . | . . . . . . Garrison Access . | . . . . . . Data Cores Recovered . | . . . . . . Used . | . . . . . . Hacking Detections 12 | . 4 . . . 8 Full Trace Events 1 | . . . . . 1 Feedback Events 1 | . . . . . 1 Corruption 1 | . . . . . 1 Feedback Blocked . | . . . . . . Robot Schematics Acquired . | . . . . . . Robots Built . | . . . . . . Matter . | . . . . . . Time . | . . . . . . Total Robot Build Rating . | . . . . . . Part Schematics Acquired 2 | . . . . . 2 Parts Built . | . . . . . . Matter . | . . . . . . Time . | . . . . . . Total Part Build Rating . | . . . . . . Parts Repaired . | . . . . . . Time . | . . . . . . Parts Recycled . | . . . . . . Recycled Matter . | . . . . . . Retrieved Matter . | . . . . . . Retrieved Components . | . . . . . . Parts Scanalyzed . | . . . . . . Part Schematics Acquired . | . . . . . . Parts Damaged . | . . . . . . Bothacking | -11 -10 -10 -10 -9 -8 ------------ Run | Scr Mat Min Exi Min Mat Used RIF Installer . | . . . . . . Robots Hacked . | . . . . . . Non-combat . | . . . . . . Combat . | . . . . . . Robot Hacks Applied . | . . . . . . Relay Couplers Released . | . . . . . . Robots Rewired . | . . . . . . Allies Hacked . | . . . . . . Hacks Repelled . | . . . . . . Allies | -11 -10 -10 -10 -9 -8 -------- Run | Scr Mat Min Exi Min Mat Total Allies 6 | . . 5 . . 1 Largest Group 5 | . . 5 5 3 . Highest-Rated Group 90 | . . 90 90 40 . Highest-Rated Ally 31 | . . 31 31 16 . Total Orders . | . . . . . . Ally Attacks 25 | . . 12 . 13 . Total Damage 323 | . . 187 . 136 . Kills 3 | . . 3 . . . Allies Corrupted . | . . . . . . Allies Melted . | . . . . . . Intel | -11 -10 -10 -10 -9 -8 ------- Run | Scr Mat Min Exi Min Mat Robot Analysis Total . | . . . . . . Derelict Logs Recovered 3 | . . 1 . 2 . Drone Launches . | . . . . . . Drone Recoveries . | . . . . . . Exploration | -11 -10 -10 -10 -9 -8 ------------- Run | Scr Mat Min Exi Min Mat Turns Passed 2959 | 86 703 343 164 312 1351 Spaces Moved 1995 | 55 574 294 158 257 657 Core 12 | 1 . . . . 11 Treads . | . . . . . . Legs . | . . . . . . Wheels 1983 | 54 574 294 158 257 646 Hover . | . . . . . . Flight . | . . . . . . Fastest Speed 50 | 50 80 100 100 100 90 Average Speed 98 | 79 87 100 100 100 109 Slowest Speed 750 | 80 100 100 100 100 750 Overloaded Moves . | . . . . . . Propulsion Burnouts . | . . . . . . Robots Hopped . | . . . . . . Cave-ins Triggered 1 | . . . . . 1 Exploration Rate (%) 58 | 2 81 90 57 67 51 Regions Visited 5 Branch Regions 3 Pre-discovered Areas 2 | . . . 1 1 . Known Exits Taken 2 | . 1 . 1 . . Unknown Exits Taken 3 | 1 . 1 . 1 . Scrap Searched 2 | . . 2 . . . Spaces Dug 26 | . . . . . 26 Terrain Destroyed 26 | . . . . . 26 Melee 26 | . . . . . 26 Projectile . | . . . . . . AOE . | . . . . . . Actions | -11 -10 -10 -10 -9 -8 --------- Run | Scr Mat Min Exi Min Mat Total 2612 | 76 697 337 164 288 1050 Wait 318 | . 53 39 7 16 203 Move 1989 | 54 573 293 157 256 656 Hop . | . . . . . . Pick Up 31 | 6 12 2 . 1 10 Fast Attach 27 | 6 3 . . 1 17 Attach 11 | . . . . . 11 Detach 5 | . 1 . . . 4 Swap 12 | . 4 . . . 8 Drop 18 | . 10 . . 2 6 Fire 110 | 10 41 3 . 12 44 Melee 90 | . . . . . 90 Ram . | . . . . . . Kick . | . . . . . . Crush . | . . . . . . Escape Stasis 1 | . . . . . 1 Rewire . | . . . . . . Trap . | . . . . . . Miscellaneous . | . . . . . . Route ------- -11/Scrapyard -10/Materials (discovered 5 exits: [*Mat x3] / *Min x2) -10/Mines (discovered 3 exits: [*Mat x2] / *Exi) -10/Exiles (discovered 2 exits: *Min x2) -9/Mines -8/Materials (discovered 3 exits: *Fac x3) History --------- Turn | Location | Event 14 | -11/Scrapyard | Discovered new exit (range 15) 87 | -11/Scrapyard | Entered Materials 107 | -10/Materials | Discovered new exit (range 22) 168 | -10/Materials | Identified exit to Mines 291 | -10/Materials | Discovered new exit (range 14) 317 | -10/Materials | Build established: Mutant 483 | -10/Materials | Discovered new exit (range 16) 790 | -10/Materials | Entered Mines 818 | -10/Mines | Received a Rocket Launcher from a helpful Derelict 864 | -10/Mines | Assisted by bots powering up and referring to "LRC-V3" 1027 | -10/Mines | Discovered new exit (range 4) 1074 | -10/Mines | Discovered new exit (range 7) 1107 | -10/Mines | Deemed a non-threat by the Exiles lab entrance 1108 | -10/Mines | Discovered new exit (range 5) 1133 | -10/Mines | Entered Exiles 1133 | -10/Exiles | Accompanied by 5 allies 1134 | -10/Exiles | Identified exit to Mines 1157 | -10/Exiles | Met 8R-AWN 1163 | -10/Exiles | Led the pair of lost Derelicts to a safe place 1174 | -10/Exiles | Met EX-HEX 1205 | -10/Exiles | Met EX-BIN 1225 | -10/Exiles | Met EX-DEC 1233 | -10/Exiles | Learned location of Zion (-7) 1297 | -10/Exiles | Entered Mines 1297 | -9/Mines | Accompanied by 3 allies 1414 | -9/Mines | Learned 2 Materials zone layouts 1432 | -9/Mines | A weapon hastily lodged in a ceiling crevice suddenly fell to the ground 1510 | -9/Mines | Discovered new exit (range 4) 1609 | -9/Mines | Entered Materials 1609 | -8/Materials | Evolved 4 slots: Propulsion x1, Utility x3 1610 | -8/Materials | Identified exit to Factory 1732 | -8/Materials | Garrison activated, responded to threat 2017 | -8/Materials | Lost 10 parts (1p3n3u3w) 2086 | -8/Materials | Core integrity fell below 50% 2089 | -8/Materials | Garrison activated, responded to threat 2538 | -8/Materials | Crushed by falling debris 2588 | -8/Materials | Core integrity fell below 20% 2626 | -8/Materials | Lost 6 parts (1p2n2u1w) 2960 | -8/Materials | Destroyed by G-47 Trooper with Particle Gun Last Messages --------------- Imp. Flight Unit Rating: 2p Schematic downloaded. 02918_ Sneak attack on A-02 Transporter. 02918_ A-02 Transporter destroyed. 02921_ Dropped Imp. Hover Unit. 02922_ Acquired Imp. Flight Unit. 02930_ System corrupted: Energy discharge (-14). 02930_ U-05 Engineer builds a Wall. 02935_ Sneak attack on A-02 Transporter. 02935_ A-02 Transporter destroyed. 02937_ Acquired 39 matter. 02938_ Sneak attack on A-02 Transporter. 02938_ A-02 Transporter destroyed. 02943_ Dropped Imp. Hover Unit. 02944_ Acquired Ion Engine. 02946_ Acquired Imp. Flight Unit. 02947_ Dropped Imp. Terrain Scanner. 02948_ Acquired Imp. Flight Unit. 02951_ G-47 Trooper destroyed. Map ----- +----------------------------------------------------+ | ????????????# ???????????# # | | ????????????# ???#########"######## | | ????????????# ???# #??????# | | ?????#??????# #??# """ #????#?# | | ????????????# #??# !! """ #?????## | | ????????????# #??# !! """ #?????#" | | ???????#????# #??# #?????## | | ?#??######### #??# = #??????# | | ???? ## #??# #??????# | | ??? ## ##?# #??????# | | ???? # ########+########### | | ???? # !]% == | | ????"" """ + ]]]= | | ????"" """ # * | | ????"" """ # ####### ########### | | ???? ## ##???### #?????????# | | ????######### #?#????# #??#??????# | | ???? ## ######?# ########??# | | ???? ^ ^ ## ## ### #! ! #### | | #???^ ^ ## ## T + # + | | ???? ^ """ ## ==## ### # #### | | ????"" """ ##![!## #?# + """ #??# | | ????""^""" ##[%[##] #?# # """ #??# | | ????" #![!## ! #?# # """ #??# | | ???? ##[ %## = ### ########### | | ????###+#####@![###+### ## # | | ?????# ====== %% ## # | | ?????# u g%[a % % ## # | | ?????# !*= ## % # | | ?????# ##########+### ## ! # | | ?????# #???????# ######## # | | ????## #???????# ### #### # | | ?????# ######### #?## # # | | ?????# # ## #??#########/### | | ????## # ## #?????????# % | | ?????????????????# #?????????# ## | | ?????????????????# !!!#?????????# #? | | ?????????????????# !!!#?????????# #? | | ??? ???